bitfinex/quotes_ETHUSD_20240816
["timestamp","ask_amount","ask_price","bid_price","bid_amount"]
[1723794939324,0.16434212,2619.9,2619.8,42.63416]
[1723794939557,3.6351,2620.0,2619.8,42.63408]
[1723794939737,0.16434084,2619.9,2619.8,42.63408]
[1723794942498,0.16434084,2619.9,2619.8,7.63408]
[1723794942907,0.16434084,2619.9,2619.8,35.0]
[1723794943112,0.16434084,2619.9,2619.8,38.81708]
[1723794943332,0.16434084,2619.9,2619.8,35.0]
[1723794943710,3.7512,2620.0,2619.8,35.0]
[1723794943938,0.16434868,2619.9,2619.8,35.0]
[1723794944120,0.16434547,2619.9,2619.8,35.0]
[1723794944673,0.16434547,2619.9,2619.8,38.81708]
[1723794944872,0.16434547,2619.9,2619.8,42.63416]
[1723794946557,0.79435317,2620.3,2620.1,3.81655]
[1723794946755,0.16432071,2620.2,2620.1,7.63319]
[1723794947355,2.2502,2620.6,2620.4,3.81619]
[1723794947566,0.16429729,2620.5,2620.4,3.81619]
[1723794947768,0.16429729,2620.5,2619.8,38.81694]
[1723794947769,2.43429729,2620.5,2619.8,38.81694]
[1723794947926,2.27,2619.9,2619.8,35.0]
[1723794948121,2.43429729,2619.9,2619.8,35.0]
[1723794948740,2.43429729,2619.9,2619.8,38.81708]
[1723794949342,0.16429729,2619.9,2619.8,38.81708]
[1723794950269,0.16429729,2620.1,2619.8,38.81708]
[1723794950485,0.16429729,2620.0,2619.8,38.81708]
[1723794950637,0.16429729,2620.0,2619.8,35.0]
[1723794950638,0.16429729,2619.9,2619.8,35.0]
[1723794951450,3.6005,2620.0,2619.8,38.81708]
[1723794951769,0.16433007,2619.9,2619.8,35.0]
[1723794952974,0.16433007,2619.9,2619.8,38.81708]
[1723794953875,0.16435367,2619.9,2619.8,38.81708]
[1723794956477,2.2905,2620.0,2619.8,38.81708]
[1723794956633,0.16435148,2619.9,2619.8,38.81708]
[1723794957900,2.2905,2620.0,2619.8,38.81708]
[1723794958076,0.16434987,2619.9,2619.8,38.81708]
[1723794963151,0.16434775,2619.9,2619.8,38.81708]
[1723794965010,0.16434775,2619.9,2619.8,42.63416]
[1723794967107,0.79435317,2620.1,2619.9,3.81687]
[1723794967253,0.16433852,2620.0,2619.9,3.81693]
[1723794967601,0.95868662,2620.0,2619.9,3.81693]
[1723794970870,0.95868662,2620.0,2619.9,38.81693]
[1723794971397,0.95853482,2620.0,2619.9,38.81693]
[1723794975011,0.16418165,2620.0,2619.9,38.81693]
[1723794975333,0.95979199,2620.0,2619.9,38.81693]
[1723794975525,0.95978488,2620.0,2619.9,38.81693]
[1723794977494,0.16417454,2620.0,2619.9,38.81693]
[1723794977900,0.9595389,2620.0,2619.9,38.81693]
[1723794978503,0.16417454,2620.0,2619.9,38.81693]
[1723794979119,0.95953862,2620.0,2619.9,38.81693]
[1723794980819,0.16417454,2620.0,2619.9,38.81693]
[1723794981010,1.19655557,2620.1,2619.9,38.81693]
[1723794981191,0.16421349,2620.0,2619.9,38.81693]
[1723794981733,0.95997904,2620.0,2619.9,38.81693]
[1723794981925,0.16421349,2620.0,2619.9,38.81693]
[1723794982226,1.36076906,2620.0,2619.9,38.81693]
[1723794982387,0.16421349,2620.0,2619.9,38.81693]
[1723794982808,0.95998914,2620.0,2619.9,38.81693]
[1723794983030,0.16420772,2620.0,2619.9,38.81693]
[1723794984132,0.16420772,2620.0,2619.9,42.63386]
[1723794987613,0.79581511,2620.1,2620.0,3.81679]
[1723794987838,0.96008434,2620.1,2620.0,3.81679]
[1723794988210,0.16426923,2620.1,2620.0,3.81679]
[1723794988633,0.96055825,2620.1,2620.0,3.81679]
[1723794990304,0.96048444,2620.1,2620.0,3.81679]
[1723794990506,0.16426923,2620.1,2620.0,3.81679]
[1723794990705,0.96049969,2620.1,2620.0,3.81679]
[1723794991122,0.96049969,2620.1,2620.0,38.81679]
[1723794991324,0.16426923,2620.1,2620.0,38.81679]
[1723794991755,0.96057873,2620.1,2620.0,38.81679]
[1723794992244,3.56755557,2620.2,2620.1,3.81664]
[1723794992446,7.37676829,2620.2,2620.1,3.81664]
[1723794992749,3.73189369,2620.2,2620.1,3.81664]
[1723794994532,3.73189369,2620.2,2620.1,38.81664]
[1723794995344,2.53533459,2620.2,2620.1,38.81664]
[1723794995540,3.73012472,2620.2,2620.1,38.81664]
[1723794995966,2.371,2620.2,2620.1,38.81664]
[1723794996142,3.73014003,2620.2,2620.1,38.81664]
[1723794997026,7.3749221,2620.2,2620.1,38.81664]
[1723794997322,7.77744629,2620.2,2620.1,38.81664]
[1723794997526,2.53533574,2620.2,2620.1,38.81664]
[1723794997723,2.4346,2620.1,2619.7,3.81714]
[1723794997957,2.10651906,2619.9,2619.5,3.81742]
[1723794998160,2.10651906,2619.9,2619.2,38.81788]
[1723794998161,2.4346,2619.5,2619.2,38.81788]
[1723794998452,0.16433574,2619.4,2619.3,8.9627286]
[1723794998631,0.96070645,2619.6,2619.5,3.81752]
[1723794998831,0.16435153,2619.6,2619.5,3.81752]
[1723794999526,0.96070645,2619.6,2619.5,3.81752]
[1723794999727,0.16435153,2619.6,2619.5,3.81752]
[1723795000260,0.16435995,2619.6,2619.5,3.81752]
[1723795001640,0.16435995,2619.6,2619.5,38.81752]
[1723795001967,0.16435995,2619.6,2619.5,42.63504]
[1723795002861,0.79635492,2620.1,2619.6,2.3224]
[1723795003068,0.79635492,2620.2,2620.1,7.63328]
[1723795003237,0.96063318,2620.2,2620.1,7.63328]
[1723795003442,0.16427826,2620.2,2620.1,7.63328]
[1723795004060,0.79635492,2620.3,2620.2,3.8165]
[1723795004362,0.96062181,2620.3,2620.2,3.8165]
[1723795004570,0.96060158,2620.3,2620.2,3.8165]
[1723795005630,1.35877904,2620.3,2620.2,3.8165]
[1723795005833,0.95981838,2620.3,2620.2,3.8165]
[1723795006777,0.95981838,2620.3,2620.1,35.0]
[1723795006778,2.4211,2620.2,2620.1,35.0]
[1723795006967,5.08885912,2620.2,2620.1,35.0]
[1723795007177,5.08885912,2620.2,2619.9,7.63368]
[1723795007363,0.95989898,2620.1,2619.9,7.63368]
[1723795007666,0.16424666,2620.0,2619.9,42.63368]
[1723795008250,0.16427685,2620.0,2619.9,42.63368]
[1723795009244,0.16427685,2620.0,2619.9,38.81683]
[1723795010874,0.16427685,2620.0,2619.9,3.81683]
[1723795011251,0.16427685,2620.0,2619.9,38.81683]
[1723795012375,0.79565232,2620.1,2620.0,3.81679]
[1723795012671,0.95997043,2620.1,2620.0,3.81679]
[1723795016393,0.79565232,2620.1,2620.0,3.81679]
[1723795016679,0.96000541,2620.1,2620.0,3.81679]
[1723795016849,0.79565232,2620.1,2620.0,3.81679]
[1723795017044,0.96000783,2620.1,2620.0,3.81679]
[1723795017849,0.16435551,2620.1,2620.0,7.63358]
[1723795018051,0.79565232,2620.3,2620.2,3.8165]
[1723795018248,0.96000034,2620.3,2620.2,3.8165]
[1723795020560,0.96001714,2620.3,2620.2,3.8165]
[1723795021570,2.27001714,2620.3,2620.1,7.6332]
[1723795021893,0.16436482,2620.2,2620.1,42.6332]
[1723795023089,0.16436482,2620.2,2620.1,7.6332]
[1723795023477,0.16436482,2620.2,2620.1,42.6332]
[1723795026589,0.16436482,2620.2,2620.1,7.6332]
[1723795027197,0.16436482,2620.2,2620.1,42.6332]
[1723795027872,0.79565232,2620.3,2620.2,3.8165]
[1723795028062,0.96022333,2620.3,2620.2,3.8165]
[1723795028275,0.79565232,2620.3,2620.2,3.8165]
[1723795028463,0.96022202,2620.3,2620.2,3.8165]
[1723795029673,0.1645697,2620.3,2620.2,3.8165]
[1723795029886,0.96022202,2620.3,2620.2,3.8165]
[1723795030596,0.96022202,2620.3,2620.2,38.8165]
[1723795031168,0.96026448,2620.3,2620.2,38.8165]
[1723795032568,0.96032064,2620.3,2620.2,38.8165]
[1723795035088,0.16466832,2620.3,2620.2,38.8165]
[1723795035287,0.96161221,2620.3,2620.2,38.8165]
[1723795037084,0.9615235,2620.3,2620.2,38.8165]
[1723795039341,0.9615235,2620.3,2620.2,35.0]
[1723795040949,0.9615235,2620.3,2620.1,3.81655]
[1723795041088,0.16457961,2620.2,2620.1,3.81655]
[1723795041601,0.16457961,2620.2,2620.1,38.81655]
[1723795041921,0.16464034,2620.2,2620.1,38.81655]
[1723795044303,0.96158423,2620.2,2620.1,38.81655]
[1723795044538,0.16464034,2620.2,2620.1,3.81655]
[1723795044932,0.16464034,2620.2,2620.1,38.81655]
[1723795045522,0.96158423,2620.2,2620.1,38.81655]
[1723795045723,0.96159363,2620.2,2620.1,38.81655]
[1723795047360,0.16464974,2620.2,2620.1,38.81655]
[1723795049164,1.3581622,2620.2,2620.1,38.81655]
[1723795050055,1.19351246,2620.2,2620.1,38.81655]
[1723795050274,1.35816335,2620.2,2620.1,38.81655]
[1723795050625,0.16465089,2620.2,2620.1,38.81655]
[1723795051047,1.35816335,2620.2,2620.1,38.81655]
[1723795053163,5.01020861,2620.2,2620.1,38.81655]
[1723795053457,6.49354331,2620.2,2619.8,3.81701]
[1723795053660,0.79810112,2619.9,2619.8,3.81701]
[1723795053887,0.96275201,2619.9,2619.8,38.81701]
[1723795054932,0.79810112,2619.9,2619.8,38.81701]
[1723795055129,0.16469472,2619.9,2619.8,35.0]
[1723795055325,1.36184641,2619.9,2619.8,35.0]
[1723795055737,0.16469472,2619.9,2619.8,35.0]
[1723795056156,1.36184641,2619.9,2619.8,35.0]
[1723795057536,0.16469472,2619.9,2619.8,35.0]
[1723795058724,3.66375169,2620.0,2619.8,35.0]
[1723795058863,0.96275938,2619.9,2619.8,35.0]
[1723795060719,0.96275938,2619.9,2619.8,38.81708]
[1723795063098,0.96274854,2619.9,2619.8,38.81708]
[1723795063291,0.96274702,2619.9,2619.8,38.81708]
[1723795063486,0.96274563,2619.9,2619.8,38.81708]
[1723795064081,0.96274563,2619.9,2619.8,3.81708]
[1723795064481,0.96274563,2619.9,2619.8,38.81708]
[1723795065532,0.16472708,2619.9,2619.8,38.81708]
[1723795065942,0.96274563,2619.9,2619.8,38.81708]
[1723795067499,0.96274563,2619.9,2619.8,3.81708]
[1723795068059,0.96274778,2619.9,2619.8,38.81708]
[1723795069057,0.79801855,2619.9,2619.8,38.81708]
[1723795069244,0.96269718,2619.9,2619.8,38.81708]
[1723795071743,0.79801855,2619.9,2619.8,38.81708]
[1723795071922,0.96275763,2619.9,2619.8,38.81708]
[1723795072128,0.16473908,2619.9,2619.8,42.63416]
[1723795073811,0.16473908,2619.9,2619.8,46.45124]
[1723795076023,0.79801855,2620.2,2620.1,3.81664]
[1723795076317,0.96272556,2620.2,2620.1,3.81664]
[1723795076866,0.96272556,2620.2,2620.1,38.81664]
[1723795077237,0.16470701,2620.2,2620.1,38.81664]
[1723795077560,0.96251308,2620.2,2620.1,7.63328]
[1723795083155,1.3618587,2620.2,2620.1,3.81664]
[1723795083362,4.58220576,2620.2,2619.9,3.81684]
[1723795083552,0.79782904,2620.0,2619.9,3.81684]
[1723795083868,0.96253136,2620.0,2619.9,3.81684]
[1723795084830,0.16470232,2620.0,2619.9,3.81684]
[1723795085448,0.96253136,2620.0,2619.9,3.81684]
[1723795085649,0.16470232,2620.0,2619.9,3.81684]
[1723795087495,3.55335169,2620.2,2619.8,38.81708]
[1723795087496,0.79782904,2620.2,2620.0,3.81679]
[1723795087650,1.19715169,2620.3,2620.1,3.81664]
[1723795087837,0.16472653,2620.2,2620.1,3.81664]
[1723795088069,1.36187822,2620.2,2620.1,3.81664]
[1723795088231,0.16472653,2620.2,2620.1,3.81664]
[1723795088434,0.96283637,2620.2,2620.1,8.396623]
[1723795088671,0.16472653,2620.2,2620.1,7.63328]
[1723795091635,0.79810984,2620.3,2620.2,3.8165]
[1723795091865,0.96284054,2620.3,2620.2,3.8165]
[1723795092072,0.79810984,2620.3,2620.2,3.8165]
[1723795092371,0.96284019,2620.3,2620.2,3.8165]
[1723795094537,0.16473035,2620.3,2620.2,8.943]
[1723795094738,0.79810984,2620.7,2620.2,7.02398928]
[1723795094940,44.59539573,2621.0,2620.9,7.63096]
[1723795094941,0.79810984,2621.0,2620.9,7.63096]
[1723795095248,0.16466418,2621.0,2620.9,8.94096]
[1723795095465,2.4047,2621.3,2621.2,7.63008]
[1723795095651,1.19715169,2621.5,2621.3,3.8149]
[1723795095652,0.79810984,2621.5,2621.3,3.8149]
[1723795095977,0.16466585,2621.4,2621.3,3.8149]
[1723795096434,0.16466585,2621.4,2621.3,7.6298]
[1723795096633,0.16466585,2621.4,2621.3,3.8149]
[1723795097675,9.7625,2621.6,2621.4,3.81469]
[1723795097975,0.16467408,2621.5,2621.4,3.81469]
[1723795099147,0.16467408,2621.5,2621.3,3.8149]
[1723795099362,0.16467408,2621.4,2621.3,3.8149]
[1723795099769,0.16467408,2621.5,2621.3,7.62961]
[1723795099965,2.3925,2621.6,2621.3,3.8148]
[1723795100153,0.16469655,2621.5,2621.3,3.8148]
[1723795100336,0.16469655,2621.5,2621.3,7.62961]
[1723795101240,0.16469655,2621.5,2621.3,3.8148]
[1723795101553,0.16469655,2621.5,2621.3,7.6296]
[1723795102843,0.16469655,2621.5,2621.3,3.8148]
[1723795103162,2.3925,2621.6,2621.4,35.0]
[1723795103463,0.1648555,2621.5,2621.4,35.0]
[1723795103894,2.3925,2621.6,2621.4,35.0]
[1723795104077,0.16486497,2621.5,2621.4,35.0]
[1723795104304,2.3925,2621.6,2621.4,35.0]
[1723795104575,3.7025,2621.6,2621.4,35.0]
[1723795104744,0.16485306,2621.5,2621.4,35.0]
[1723795105344,3.7025,2621.6,2621.4,35.0]
[1723795105957,0.16485768,2621.5,2621.4,35.0]
[1723795106666,3.7025,2621.6,2621.4,35.0]
[1723795107873,2.3925,2621.6,2621.4,35.0]
[1723795108949,0.16482086,2621.5,2621.4,35.0]
[1723795109284,3.7025,2621.6,2621.4,35.0]
[1723795109486,2.3925,2621.6,2621.4,35.0]
[1723795110390,3.7025,2621.6,2621.4,35.0]
[1723795111507,0.16481411,2621.5,2621.4,35.0]
[1723795111906,3.7025,2621.6,2621.4,35.0]
[1723795112062,0.164816,2621.5,2621.4,35.0]
[1723795112396,3.7025,2621.6,2621.4,35.0]
[1723795113586,0.16481318,2621.5,2621.4,35.0]
[1723795114305,3.7025,2621.6,2621.4,35.0]
[1723795114527,0.16481322,2621.5,2621.4,35.0]
[1723795116664,0.16484626,2621.5,2621.4,35.0]
[1723795117020,3.7025,2621.6,2621.4,35.0]
[1723795117212,0.16484527,2621.5,2621.4,35.0]
[1723795117631,2.29,2621.4,2620.4,2.2641]
[1723795117911,1.31,2621.2,2621.0,3.81525]
[1723795118200,1.31,2621.2,2621.1,35.0]
[1723795118422,1.47486902,2621.2,2621.1,35.0]
[1723795120519,3.76486902,2621.2,2621.1,35.0]
[1723795120737,3.6,2621.2,2621.1,35.0]
[1723795120929,4.19144057,2621.2,2621.1,35.0]
[1723795123844,4.19144057,2621.2,2620.9,3.81546]
[1723795124145,0.16487847,2621.1,2621.0,35.0]
[1723795127228,0.16486727,2621.1,2621.0,35.0]
[1723795128099,3.28583964,2621.1,2621.0,35.0]
[1723795129131,10.91621964,2621.1,2621.0,35.0]
[1723795129434,2.3121,2620.9,2620.4,7.63225]
[1723795129742,0.77762127,2620.8,2620.5,3.81606]
[1723795129900,0.16486727,2620.7,2620.5,3.81606]
[1723795130092,0.16486727,2620.6,2620.5,3.81606]
[1723795130653,0.16486727,2620.6,2620.4,3.81612]
[1723795130858,0.16486727,2620.5,2620.4,7.63225]
[1723795132354,0.16486727,2620.5,2620.4,42.63225]
[1723795133366,3.6221,2620.9,2620.5,3.81601]
[1723795133511,0.16486411,2620.8,2620.5,3.81601]
[1723795133845,0.16486411,2620.7,2620.5,3.81601]
[1723795134008,0.16486411,2620.6,2620.5,3.81601]
[1723795137469,4.42020984,2620.9,2620.5,3.81601]
[1723795137651,0.16486418,2620.8,2620.5,3.81601]
[1723795137946,0.16486418,2620.7,2620.5,3.81601]
[1723795138147,0.16486418,2620.6,2620.5,3.81601]
[1723795138954,2.4582,2620.5,2620.4,35.0]
[1723795139153,2.4582,2620.5,2619.6,0.80231273]
[1723795139154,2.4582,2620.4,2619.6,3.81727]
[1723795139357,1.31,2620.1,2619.6,3.81727]
[1723795139530,0.16486418,2620.0,2619.6,3.81727]
[1723795139853,0.16486418,2620.0,2619.7,38.8172]
[1723795140146,0.16486418,2620.0,2619.8,3.81707]
[1723795140355,0.7968292,2620.4,2619.8,3.81707]
[1723795140356,2.4582,2620.4,2619.8,1.31]
[1723795140649,0.16487332,2620.3,2620.1,3.81655]
[1723795140951,2.78370292,2620.4,2620.2,35.0]
[1723795141248,0.16487366,2620.3,2620.2,35.0]
[1723795141547,0.16496456,2620.3,2620.2,35.0]
[1723795146323,0.16496456,2620.3,2619.9,3.8169]
[1723795146527,0.16496456,2620.2,2619.9,3.8169]
[1723795146745,0.16496456,2620.1,2619.9,3.8169]
[1723795146948,3.29630992,2620.4,2619.9,3.8169]
[1723795147218,0.1649922,2620.3,2620.2,35.0]
[1723795147655,4.84007941,2620.3,2620.2,35.0]
[1723795147862,12.27792941,2620.3,2620.2,35.0]
[1723795148157,2.2694,2620.1,2619.7,3.81722]
[1723795148393,2.2694,2620.1,2619.8,35.0]
[1723795148540,0.16500638,2620.0,2619.8,35.0]
[1723795148885,2.2694,2620.1,2619.7,3.81722]
[1723795149242,2.2694,2620.1,2619.8,3.81708]
[1723795149550,0.16499919,2620.0,2619.9,35.0]
[1723795149740,6.08575,2620.3,2619.9,35.0]
[1723795149942,0.16499651,2620.2,2619.9,35.0]
[1723795150142,0.16499651,2620.1,2619.9,35.0]
[1723795150376,0.16499651,2620.0,2619.9,35.0]
[1723795150543,0.16499651,2620.2,2619.9,35.0]
[1723795150740,0.16499651,2620.1,2620.0,3.81679]
[1723795151104,2.2694,2620.5,2620.1,3.81655]
[1723795151244,2.2694,2620.5,2620.2,4.579814]
[1723795151245,0.16499706,2620.4,2620.2,4.579814]
[1723795151445,0.16499706,2620.3,2620.2,38.81648]
[1723795152201,0.16499706,2620.3,2620.2,35.0]
[1723795152869,2.2694,2620.5,2620.2,35.0]
[1723795153203,0.16500021,2620.4,2620.2,35.0]
[1723795153381,0.16499842,2620.3,2620.2,35.0]
[1723795157100,0.16499792,2620.3,2620.2,35.0]
[1723795159498,0.16498703,2620.3,2620.2,35.0]
[1723795160161,0.16498703,2620.3,2620.2,38.8165]
[1723795162196,2.2694,2620.5,2620.2,42.633]
[1723795162498,0.1650009,2620.4,2620.3,3.81635]
[1723795162679,5.95858623,2620.8,2620.3,3.81635]
[1723795162680,0.1650009,2620.7,2620.3,3.81635]
[1723795162991,0.16497424,2620.6,2620.5,3.81599]
[1723795165593,0.1649944,2620.6,2620.5,3.81599]
[1723795165927,2.2984,2620.8,2620.5,3.81599]
[1723795166093,0.16499642,2620.7,2620.5,38.81599]
[1723795166406,0.16499642,2620.6,2620.5,38.81599]
[1723795167149,2.2984,2620.8,2620.5,38.81599]
[1723795167309,0.16499849,2620.7,2620.5,38.81599]
[1723795167484,0.16499849,2620.6,2620.5,38.81599]
[1723795168814,0.16499849,2620.6,2620.5,35.0]
[1723795169816,2.2984,2620.8,2620.5,35.0]
[1723795169817,3.09618264,2620.8,2620.5,38.81606]
[1723795170029,0.16499303,2620.7,2620.5,38.81606]
[1723795170196,0.16499303,2620.6,2620.5,38.81606]
[1723795171939,0.16499303,2620.6,2620.5,35.0]
[1723795172088,2.64929303,2620.6,2620.5,35.0]
[1723795172438,3.44707567,2620.6,2620.5,35.0]
[1723795172607,4.89535006,2620.6,2620.5,35.0]
[1723795172789,4.09756742,2620.6,2620.5,35.0]
[1723795172990,5.29424138,2620.6,2620.5,35.0]
[1723795174428,4.09756742,2620.6,2620.5,35.0]
[1723795174729,4.89615326,2620.6,2620.5,35.0]
[1723795175227,4.09756742,2620.6,2620.5,35.0]
[1723795176411,4.09755827,2620.6,2620.5,35.0]
[1723795176618,4.09755827,2620.6,2620.3,3.81635]
[1723795176825,0.96360243,2620.5,2620.3,3.81635]
[1723795176996,0.16498388,2620.4,2620.3,3.81635]
[1723795177337,0.79861855,2620.5,2620.3,3.81635]
[1723795177494,0.16498319,2620.4,2620.3,3.81635]
[1723795178036,0.16498319,2620.4,2620.3,38.81635]
[1723795178559,0.79861855,2620.5,2620.3,38.81635]
[1723795178738,0.1649863,2620.4,2620.3,38.81635]
[1723795178931,0.79861855,2620.5,2620.3,38.81635]
[1723795179211,0.16498632,2620.4,2620.3,38.81635]
[1723795181404,0.16498632,2620.4,2620.3,42.6327]
[1723795186711,3.13461855,2620.6,2620.4,3.81616]
[1723795186909,0.16503767,2620.5,2620.4,3.81616]
[1723795187112,3.13461855,2620.6,2620.4,3.81616]
[1723795187341,0.16503651,2620.5,2620.4,3.81616]
[1723795187625,3.13461855,2620.6,2620.4,3.81616]
[1723795187841,0.16503973,2620.5,2620.4,3.81616]
[1723795188629,3.13461855,2620.6,2620.4,3.81616]
[1723795188809,0.16503535,2620.5,2620.4,3.81616]
[1723795191465,3.13461855,2620.6,2620.4,3.81616]
[1723795191653,0.16503064,2620.5,2620.4,3.81616]
[1723795191856,0.16503064,2620.5,2620.3,35.0]
[1723795191857,0.79861855,2620.5,2620.3,35.0]
[1723795192015,0.16502787,2620.4,2620.3,38.81634]
[1723795192649,0.16504808,2620.4,2620.3,38.81634]
[1723795193047,0.96366663,2620.4,2620.3,38.81634]
[1723795193345,0.16504808,2620.4,2620.3,38.81634]
[1723795194138,0.1650572,2620.4,2620.3,38.81634]
[1723795194842,0.79861855,2620.5,2620.3,38.81634]
[1723795195040,0.16508608,2620.4,2620.3,38.81634]
[1723795195681,0.96370463,2620.4,2620.3,38.81634]
[1723795195976,0.16508608,2620.4,2620.3,38.81634]
[1723795196183,0.79861855,2620.4,2620.3,38.81634]
[1723795196375,0.16508608,2620.4,2620.3,38.81634]
[1723795196599,0.96370463,2620.4,2620.3,38.81634]
[1723795198284,0.16508608,2620.4,2620.3,38.81634]
[1723795198486,0.96370463,2620.4,2620.3,38.81634]
[1723795199082,0.16508608,2620.4,2620.3,38.81634]
[1723795200170,2.336,2620.6,2620.3,38.81634]
[1723795200392,2.336,2620.6,2620.4,3.81616]
[1723795200393,0.96527932,2620.5,2620.4,3.81616]
[1723795202868,0.16508212,2620.5,2620.4,3.81616]
[1723795203187,0.96527932,2620.5,2620.4,3.81616]
[1723795203364,0.16508212,2620.5,2620.4,3.81616]
[1723795203581,0.96527932,2620.5,2620.4,3.81616]
[1723795203889,0.96531765,2620.5,2620.4,3.81616]
[1723795204054,0.8001972,2620.5,2620.4,3.81616]
[1723795204542,0.96532004,2620.5,2620.4,3.81616]
[1723795204974,3.43882004,2620.5,2620.4,3.81616]
[1723795205202,3.43882004,2620.5,2620.3,38.81635]
[1723795205402,0.16512284,2620.4,2620.3,38.81635]
[1723795206689,0.16512284,2620.4,2620.3,35.0]
[1723795207006,0.16512284,2620.4,2620.3,38.81635]
[1723795207221,0.16512143,2620.4,2620.3,38.81635]
[1723795208094,0.16512253,2620.4,2620.3,38.81635]
[1723795208403,0.16512002,2620.4,2620.3,38.81635]
[1723795209561,0.96531722,2620.4,2620.3,38.81635]
[1723795209805,0.16512002,2620.4,2620.3,38.81635]
[1723795212105,0.8001972,2620.5,2620.3,38.81635]
[1723795212330,0.16511848,2620.4,2620.3,38.81635]
[1723795213107,3.40191568,2620.4,2620.3,38.81635]
[1723795214205,0.96531568,2620.4,2620.3,38.81635]
[1723795214806,0.96531568,2620.4,2620.3,42.6327]
[1723795216029,0.16511848,2620.4,2620.3,42.6327]
[1723795216236,0.96531568,2620.4,2620.3,42.6327]
[1723795216922,0.96531568,2620.4,2620.3,38.81635]
[1723795218347,0.16511848,2620.4,2620.3,38.81635]
[1723795218566,0.96531568,2620.4,2620.3,38.81635]
[1723795220024,0.96531568,2620.4,2620.3,35.0]
[1723795220225,3.22251568,2620.4,2620.3,38.81635]
[1723795222244,3.0573972,2620.4,2620.3,38.81635]
[1723795222543,3.22236846,2620.4,2620.3,38.81635]
[1723795224356,3.22236846,2620.4,2620.3,35.0]
[1723795224951,3.22242176,2620.4,2620.3,38.81635]
[1723795229439,3.22238236,2620.4,2620.3,38.81635]
[1723795229875,3.22238236,2620.4,2620.3,35.0]
[1723795231340,2.42218516,2620.4,2620.3,35.0]
[1723795231572,3.22244677,2620.4,2620.3,38.81635]
[1723795233045,3.22245254,2620.4,2620.3,38.81635]
[1723795234824,0.96525254,2620.4,2620.3,42.6327]
[1723795236048,0.16499093,2620.4,2620.3,42.6327]
[1723795236244,2.00056658,2620.8,2620.7,3.81577]
[1723795236245,0.80026161,2620.8,2620.7,3.81577]
[1723795236473,0.16494634,2620.8,2620.7,19.32521468]
[1723795236676,2.00055741,2621.3,2620.7,11.14632212]
[1723795236915,0.80026161,2621.4,2621.2,1.1643]
[1723795237054,3.6719958,2621.5,2621.4,3.81475]
[1723795237055,2.4717,2621.5,2621.4,3.81475]
[1723795237384,2.63542115,2621.5,2621.4,3.81475]
[1723795237776,0.16372115,2621.5,2621.4,42.6295]
[1723795237958,0.16372115,2621.5,2621.4,44.53391435]
[1723795238286,2.3297,2621.8,2621.7,7.62862]
[1723795238596,2.49340405,2621.8,2621.7,7.62862]
[1723795239281,2.49341288,2621.8,2621.7,7.62862]
[1723795239493,2.3297,2621.8,2621.7,7.62862]
[1723795240301,2.3297,2621.8,2621.7,3.81431]
[1723795241368,2.3297,2621.8,2621.7,7.62862]
[1723795241770,2.3297,2621.8,2621.7,42.62862]
[1723795241946,2.3297,2621.8,2621.7,38.81431]
[1723795242801,2.2803,2622.1,2621.7,37.31799592]
[1723795243002,2.2803,2622.1,2621.7,35.0]
[1723795243506,2.2803,2622.1,2621.9,3.81394]
[1723795243918,2.2803,2622.1,2621.9,3.81393]
[1723795245459,2.2803,2622.1,2622.0,7.62776]
[1723795245659,2.2803,2622.1,2622.0,3.81388]
[1723795247740,2.4822,2622.5,2622.2,3.81349]
[1723795247995,3.36357177,2622.5,2622.2,3.81349]
[1723795251155,2.4444,2622.4,2622.2,3.81349]
[1723795251957,2.4444,2622.4,2622.0,7.62764]
[1723795252145,2.92430112,2622.4,2622.1,3.81372]
[1723795253304,2.92430112,2622.4,2622.2,3.81357]
[1723795254269,2.92430112,2622.4,2622.1,3.81373]
[1723795255449,2.92430112,2622.4,2622.2,3.81347]
[1723795255856,2.92430112,2622.4,2622.3,3.81344]
[1723795256080,0.47990112,2622.4,2622.3,3.81344]
[1723795258883,0.47990112,2622.4,2622.3,38.81344]
[1723795259391,0.47990112,2622.4,2622.3,42.62688]
[1723795260879,0.47990112,2622.4,2622.3,43.93688]
[1723795261288,0.47990112,2622.4,2622.3,42.62688]
[1723795265168,0.64368436,2622.4,2622.3,42.62688]
[1723795266656,0.16378324,2622.4,2622.3,42.62688]
[1723795268271,2.60698324,2622.4,2622.3,35.0]
[1723795268469,2.60698324,2622.4,2622.1,3.81363]
[1723795268689,0.16378324,2622.3,2622.1,3.81363]
[1723795268872,2.4432,2622.4,2622.2,3.81359]
[1723795269177,0.16383393,2622.3,2622.2,7.62718]
[1723795271868,0.16383393,2622.3,2622.2,3.81359]
[1723795272698,0.16383393,2622.3,2622.2,38.81359]
[1723795273101,2.4432,2622.4,2622.2,38.81359]
[1723795273300,0.16382605,2622.3,2622.2,38.81359]
[1723795275615,0.16382605,2622.3,2622.2,3.81359]
[1723795276026,0.16382605,2622.3,2622.2,38.81359]
[1723795276206,0.16382605,2622.3,2622.2,42.62718]
[1723795277361,0.16382605,2622.3,2622.2,38.81359]
[1723795277483,2.3089,2622.3,2622.2,38.81359]
[1723795277682,0.70673682,2622.3,2622.2,42.62718]
[1723795277894,0.70673558,2622.3,2622.2,42.62718]
[1723795281825,0.70673875,2622.3,2622.2,42.62718]
[1723795283862,0.70671334,2622.3,2622.2,42.62718]
[1723795287276,0.54301499,2622.3,2622.2,42.62718]
[1723795287503,0.70669643,2622.3,2622.2,42.62718]
[1723795290176,0.70668615,2622.3,2622.2,42.62718]
[1723795290722,0.54301499,2622.3,2622.2,42.62718]
[1723795290955,0.70667409,2622.3,2622.2,42.62718]
[1723795291866,0.54301499,2622.3,2622.2,42.62718]
[1723795292041,0.70668011,2622.3,2622.2,42.62718]
[1723795292256,0.54301499,2622.3,2622.2,42.62718]
[1723795292442,0.70667409,2622.3,2622.2,42.62718]
[1723795296691,0.54301499,2622.3,2622.2,42.62718]
[1723795296835,0.70666615,2622.3,2622.2,42.62718]